bitfinex-derivatives/quotes_BTCF0:USTF0_20250514
["timestamp","ask_amount","ask_price","bid_price","bid_amount"]
[1747227495817,0.2545679,104060.0,104050.0,0.61926774]
[1747227496018,0.2867679,104060.0,104050.0,0.61926774]
[1747227500408,0.2867679,104060.0,104050.0,0.98006774]
[1747227507423,0.2867679,104060.0,104050.0,0.90248952]
[1747227507622,0.2867679,104060.0,104050.0,0.98006774]
[1747227508310,0.2867679,104060.0,104050.0,0.61926774]
[1747227509021,0.2867679,104060.0,104050.0,0.98006774]
[1747227509324,0.2867679,104060.0,104050.0,0.61926774]
[1747227510024,0.2867679,104060.0,104050.0,0.76620056]
[1747227511023,0.2867679,104060.0,104050.0,1.12700056]
[1747227511321,0.2867679,104060.0,104050.0,0.76620056]
[1747227517231,0.2867679,104060.0,104050.0,1.12700056]
[1747227517538,0.2867679,104060.0,104050.0,0.76620056]
[1747227517921,0.2867679,104060.0,104050.0,1.12700056]
[1747227518121,0.2867679,104060.0,104050.0,0.76620056]
[1747227518324,0.2867679,104060.0,104050.0,1.12700056]
[1747227518525,0.2867679,104060.0,104050.0,0.76620056]
[1747227518820,0.2867679,104060.0,104050.0,0.96102088]
[1747227519032,0.2867679,104060.0,104050.0,1.32182088]
[1747227519333,0.2867679,104060.0,104050.0,0.96102088]
[1747227519927,0.2867679,104060.0,104050.0,1.32182088]
[1747227520132,0.2867679,104060.0,104050.0,0.96102088]
[1747227521235,0.2867679,104060.0,104050.0,1.32182088]
[1747227522730,0.2867679,104060.0,104050.0,0.96102088]
[1747227523725,0.2867679,104060.0,104050.0,0.80790134]
[1747227524136,0.2867679,104060.0,104050.0,0.81352205]
[1747227525833,0.2867679,104060.0,104050.0,1.17432205]
[1747227536446,0.2867679,104060.0,104050.0,0.97950173]
[1747227541246,0.2867679,104060.0,104050.0,0.90192351]
[1747227541450,0.2867679,104060.0,104050.0,0.97950173]
[1747227549159,0.2867679,104060.0,104050.0,1.02738923]
[1747227564263,0.2867679,104060.0,104050.0,0.94981101]
[1747227564456,0.2867679,104060.0,104050.0,1.02738923]
[1747227567960,0.2867679,104060.0,104050.0,0.94981101]
[1747227568162,0.2867679,104060.0,104050.0,1.02738923]
[1747227568355,0.2867679,104060.0,104050.0,0.94981101]
[1747227568555,0.2867679,104060.0,104050.0,1.02738923]
[1747227570772,0.2867679,104060.0,104050.0,0.94981101]
[1747227570960,0.2867679,104060.0,104050.0,0.63628923]
[1747227571156,0.2867679,104060.0,104050.0,0.57518923]
[1747227572161,0.2867679,104060.0,104050.0,0.96838923]
[1747227572469,0.2867679,104060.0,104050.0,0.60758923]
[1747227572770,0.2867679,104060.0,104050.0,0.96838923]
[1747227574160,0.2867679,104060.0,104050.0,0.99968923]
[1747227575967,0.2867679,104060.0,104050.0,0.78593956]
[1747227576173,0.2867679,104060.0,104050.0,1.14673956]
[1747227576671,0.2867679,104060.0,104050.0,1.06916134]
[1747227576870,0.2867679,104060.0,104050.0,1.14673956]
[1747227578564,0.2867679,104060.0,104050.0,1.06916134]
[1747227578766,0.2867679,104060.0,104050.0,1.14673956]
[1747227580366,0.2867679,104060.0,104050.0,0.78593956]
[1747227580565,0.2867679,104060.0,104050.0,1.14673956]
[1747227581377,0.2867679,104060.0,104050.0,0.78593956]
[1747227583566,0.2867679,104060.0,104050.0,1.14673956]
[1747227584585,0.2867679,104060.0,104050.0,0.78593956]
[1747227584989,0.2867679,104060.0,104050.0,1.14673956]
[1747227586384,0.2867679,104060.0,104050.0,0.78593956]
[1747227586579,0.2867679,104060.0,104050.0,1.14673956]
[1747227587883,0.2867679,104060.0,104050.0,0.78593956]
[1747227588386,0.2867679,104060.0,104050.0,1.14673956]
[1747227588782,0.2867679,104060.0,104050.0,0.95191924]
[1747227590188,0.2867679,104060.0,104050.0,0.98451924]
[1747227590691,0.2867679,104060.0,104050.0,0.62371924]
[1747227590886,0.2867679,104060.0,104050.0,0.98451924]
[1747227591280,0.2867679,104060.0,104050.0,1.17933956]
[1747227592088,0.2867679,104060.0,104050.0,1.10176134]
[1747227592288,0.2867679,104060.0,104050.0,1.17933956]
[1747227598494,0.2867679,104060.0,104050.0,1.10176134]
[1747227598681,0.2867679,104060.0,104050.0,1.17933956]
[1747227599594,0.2867679,104060.0,104050.0,1.10176134]
[1747227599791,0.2867679,104060.0,104050.0,1.17933956]
[1747227600893,0.2867679,104060.0,104050.0,1.14673956]
[1747227601289,0.2867679,104060.0,104050.0,0.95455316]
[1747227601495,0.2867679,104060.0,104050.0,0.89085316]
[1747227601688,0.2867679,104060.0,104050.0,0.81327494]
[1747227602000,0.72514612,104060.0,104050.0,0.35637192]
[1747227602186,0.72514612,104060.0,104050.0,0.34749136]
[1747227602383,0.95114612,104060.0,104050.0,0.34749136]
[1747227602878,0.95114612,104060.0,104050.0,0.20044103]
[1747227604593,0.2867679,104060.0,104050.0,0.27801925]
[1747227604796,0.2867679,104060.0,104050.0,0.37412227]
[1747227605095,0.2867679,104060.0,104050.0,0.56862227]
[1747227606199,0.2867679,104060.0,104050.0,0.37380195]
[1747227606894,0.2867679,104060.0,104050.0,0.29622373]
[1747227607794,0.6475679,104060.0,104050.0,0.29622373]
[1747227608682,0.6475679,104060.0,104050.0,0.37380195]
[1747227609391,0.2867679,104060.0,104050.0,0.99018835]
[1747227609601,0.2545679,104060.0,104050.0,0.99018835]
[1747227610692,0.2850679,104060.0,104050.0,0.99018835]
[1747227611401,0.2850679,104060.0,104050.0,1.13715697]
[1747227612803,0.2545679,104060.0,104050.0,1.13715697]
[1747227613194,0.2244679,104060.0,104050.0,1.13715697]
[1747227617799,0.2244679,104060.0,104050.0,1.36279697]
[1747227618001,0.2560679,104060.0,104050.0,1.36279697]
[1747227619508,0.2560679,104060.0,104050.0,1.55761729]
[1747227622203,0.2560679,104060.0,104050.0,1.38834335]
[1747227622605,0.2560679,104060.0,104050.0,1.49006708]
[1747227623210,0.2560679,104060.0,104050.0,1.26442708]
[1747227623706,0.2870679,104060.0,104050.0,1.26442708]
[1747227624406,0.2870679,104060.0,104050.0,1.06960676]
[1747227626593,0.2870679,104060.0,104050.0,0.70880676]
[1747227626794,0.2870679,104060.0,104050.0,0.99202854]
[1747227626995,0.2870679,104060.0,104050.0,0.70880676]
[1747227627193,0.2870679,104060.0,104050.0,0.63122854]
[1747227627608,0.36464612,104060.0,104050.0,0.37564214]
[1747227627807,0.80302434,104060.0,104050.0,0.37564214]
[1747227628002,0.80302434,104060.0,104050.0,0.27953912]
[1747227628204,0.6478679,104060.0,104050.0,0.15258933]
[1747227628405,0.80544612,104060.0,104050.0,0.15258933]
[1747227628711,0.95092612,104060.0,104050.0,0.15258933]
[1747227629408,1.11850434,104060.0,104050.0,0.15258933]
[1747227629803,1.11850434,104060.0,104050.0,0.00562071]
[1747227631509,1.39850434,104060.0,104050.0,0.00562071]
[1747227632014,1.74460834,104060.0,104050.0,0.00562071]
[1747227632210,1.90660834,104060.0,104050.0,0.00562071]
[1747227632811,0.1921864,104050.0,104040.0,0.14696862]
[1747227633012,1.30332462,104050.0,104040.0,0.14696862]
[1747227633514,1.30332462,104050.0,104030.0,0.17291105]
[1747227633515,0.1922049,104040.0,104030.0,0.17291105]
[1747227633711,0.92002312,104040.0,104030.0,0.17291105]
[1747227633915,0.92002312,104040.0,104030.0,0.14889105]
[1747227634212,0.5148449,104040.0,104030.0,0.14889105]
[1747227634712,0.5148049,104040.0,104030.0,0.14889105]
[1747227634911,0.5148049,104040.0,104030.0,0.24501254]
[1747227635109,0.6502049,104040.0,104030.0,0.41001254]
[1747227635413,0.2894049,104040.0,104030.0,0.60223584]
[1747227636406,0.2894049,104040.0,104030.0,0.41001254]
[1747227636915,0.2894049,104040.0,104030.0,0.26704392]
[1747227637415,0.6502049,104040.0,104030.0,0.26704392]
[1747227638117,0.2894049,104040.0,104030.0,0.26704392]
[1747227638603,0.6502049,104040.0,104030.0,0.26704392]
[1747227638805,0.2894049,104040.0,104030.0,0.53684544]
[1747227639304,0.2894049,104040.0,104030.0,0.26704392]
[1747227639611,0.2894049,104040.0,104030.0,0.34462214]
[1747227639915,0.2894049,104040.0,104030.0,0.26704392]
[1747227640518,0.36698312,104040.0,104030.0,0.26704392]
[1747227641316,0.72778312,104040.0,104030.0,0.10504392]
[1747227641517,0.72778312,104040.0,104030.0,0.00892243]
[1747227641719,0.95338312,104040.0,104030.0,0.00892243]
[1747227642414,0.95310312,104040.0,104030.0,0.00892243]
[1747227642620,0.1922233,104030.0,104020.0,0.38407622]
[1747227642808,0.2871233,104030.0,104020.0,0.38407622]
[1747227643010,0.2871233,104030.0,104020.0,0.48019771]
[1747227643315,0.2871233,104030.0,104020.0,0.64219771]
[1747227643719,0.2871233,104030.0,104020.0,0.64719771]
[1747227644220,0.2881233,104030.0,104020.0,0.57461949]
[1747227644421,0.2881233,104030.0,104020.0,0.61909771]
[1747227645122,0.2881233,104030.0,104020.0,0.57104151]
[1747227645423,0.2881233,104030.0,104020.0,0.49346329]
[1747227647115,0.2881233,104030.0,104020.0,0.52536329]
[1747227647420,0.2881233,104030.0,104020.0,0.60294151]
[1747227650019,0.2881233,104030.0,104020.0,0.60856222]
[1747227650323,0.2881233,104030.0,104020.0,0.61226222]
[1747227659235,0.2881233,104030.0,104020.0,0.75923084]
[1747227660121,0.2881233,104030.0,104020.0,0.67795262]
[1747227660529,0.72650152,104030.0,104020.0,0.42071082]
[1747227661231,0.6489233,104030.0,104020.0,0.52853084]
[1747227661734,0.6489233,104030.0,104020.0,0.59023084]
[1747227662132,0.6479233,104030.0,104020.0,0.74923084]
[1747227662730,0.6479233,104030.0,104020.0,0.67165262]
[1747227663038,0.6479233,104030.0,104020.0,0.74553084]
[1747227664932,0.6479233,104030.0,104020.0,0.86277294]
[1747227665536,0.6479233,104030.0,104020.0,0.94035116]
[1747227667924,0.6479233,104030.0,104020.0,0.94405116]
[1747227669335,0.6479233,104030.0,104020.0,0.80191704]
[1747227669637,0.2871233,104030.0,104020.0,0.89804777]
[1747227670439,0.2871233,104030.0,104020.0,0.89434777]
[1747227671021,0.2871233,104030.0,104020.0,0.81676955]
[1747227671229,0.2871233,104030.0,104020.0,0.89434777]
[1747227671429,0.2871233,104030.0,104020.0,0.83134777]
[1747227672029,0.2871233,104030.0,104020.0,0.75376955]
[1747227672230,0.2871233,104030.0,104020.0,0.83134777]
[1747227673440,0.2871233,104030.0,104020.0,0.75376955]
[1747227673635,0.2871233,104030.0,104020.0,0.56152775]
[1747227673636,0.72550152,104030.0,104020.0,0.56152775]
[1747227673838,0.72550152,104030.0,104020.0,0.46539702]
[1747227674139,0.72550152,104030.0,104020.0,0.30339702]
[1747227677434,0.75550152,104030.0,104020.0,0.27396652]
[1747227677640,0.75550152,104030.0,104020.0,0.26834581]
[1747227678031,0.75550152,104030.0,104020.0,0.28292148]
[1747227678244,0.75550152,104030.0,104020.0,0.01657567]
[1747227678541,0.75550152,104030.0,104020.0,0.02219638]
[1747227679941,0.1922418,104020.0,104010.0,0.0168314]
[1747227680138,1.02715824,104020.0,104010.0,0.0168314]
[1747227680529,0.8720018,104020.0,104010.0,0.0168314]
[1747227681131,0.8720018,104020.0,104010.0,0.0188314]
[1747227681533,0.94958002,104020.0,104010.0,0.0188314]
[1747227681734,1.17574002,104020.0,104010.0,0.0218314]
[1747227682539,0.1922603,104010.0,104000.0,0.1]
[1747227682732,0.74193852,104010.0,104000.0,0.1]
[1747227683132,0.93193852,104010.0,104000.0,0.1]
[1747227683543,0.93193852,104010.0,104000.0,0.0501]
[1747227683839,0.8543603,104010.0,104000.0,0.0501]
[1747227684242,1.02808652,104010.0,104000.0,0.2121]
[1747227684841,0.9505083,104010.0,104000.0,0.2121]
[1747227685347,0.1922788,104000.0,103990.0,0.00192317]
[1747227685642,1.23191524,104000.0,103990.0,0.00192317]
[1747227686045,1.15433702,104000.0,103990.0,0.00192317]
[1747227686244,1.53807524,104000.0,103990.0,7e-08]
[1747227686447,1.53807524,104000.0,103990.0,0.00100007]
[1747227686839,1.57107524,104000.0,103990.0,0.00100007]
[1747227687034,1.57307524,104000.0,103990.0,0.00200007]
[1747227687237,1.57307524,104000.0,103990.0,0.00100007]
[1747227687543,1.57607524,104000.0,103990.0,0.00200007]
[1747227688446,1.58646186,104000.0,103990.0,0.00200007]
[1747227689744,0.1923158,103980.0,103970.0,0.00549177]
[1747227689939,1.29379224,103980.0,103970.0,0.00549177]
[1747227690138,1.2350358,103980.0,103970.0,0.16749177]
[1747227690346,1.39019224,103980.0,103970.0,0.19779177]
[1747227691339,1.39119224,103980.0,103970.0,0.16849177]
[1747227691753,1.61599224,103980.0,103970.0,0.16849177]
[1747227692051,1.63062056,103980.0,103970.0,0.16849177]
[1747227692238,1.63062056,103980.0,103970.0,0.16949177]
[1747227692438,1.47546412,103980.0,103970.0,0.18389482]
[1747227692639,1.63062056,103980.0,103970.0,0.18389482]
[1747227693345,1.63062056,103980.0,103970.0,0.21459482]
[1747227694947,1.63062056,103980.0,103970.0,0.22021553]
[1747227695946,0.95994412,103980.0,103970.0,0.49012805]
[1747227696147,0.95994412,103980.0,103970.0,0.45517071]
[1747227696345,0.99044412,103980.0,103970.0,0.64750501]
[1747227696545,1.06802234,103980.0,103970.0,0.56992679]
[1747227696741,1.06802234,103980.0,103970.0,0.37759249]
[1747227697051,1.08409402,103980.0,103970.0,0.37780766]
[1747227697454,1.16167224,103980.0,103970.0,0.2816307]
[1747227697844,1.08409402,103980.0,103970.0,0.2816307]
[1747227698041,1.16167224,103980.0,103970.0,0.2816307]
[1747227698240,1.16167224,103980.0,103970.0,0.2204307]
[1747227698241,1.08409402,103980.0,103970.0,0.2204307]
[1747227698447,1.0065158,103980.0,103970.0,0.2204307]
[1747227698649,1.08409402,103980.0,103970.0,0.2820307]
[1747227699353,1.16167224,103980.0,103970.0,0.2204307]
[1747227700055,1.38651224,103980.0,103970.0,0.2204307]
[1747227700557,1.38651224,103980.0,103970.0,0.1897307]
[1747227701050,1.42651224,103980.0,103970.0,0.1897307]
[1747227701354,0.1923528,103960.0,103950.0,0.00192391]
[1747227701661,1.15786924,103960.0,103950.0,0.01629511]
[1747227701844,1.25176924,103960.0,103950.0,0.01629511]
[1747227702151,1.25176924,103960.0,103950.0,0.17829511]
[1747227702343,1.61256924,103960.0,103950.0,0.17829511]
[1747227702537,2.01014746,103960.0,103950.0,0.17829511]
[1747227702743,0.1923713,103950.0,103940.0,0.19482032]
[1747227702955,0.84192774,103950.0,103940.0,0.17385973]
[1747227703247,0.1923898,103940.0,103930.0,0.24448754]
[1747227703450,1.215287,103940.0,103930.0,0.24448754]
[1747227703658,1.225287,103940.0,103930.0,0.18664834]
[1747227703841,0.048102,103930.0,103900.0,0.97270305]
[1747227704041,0.6718425,103910.0,103900.0,1.00300305]
[1747227704258,0.6718425,103910.0,103900.0,1.29291702]
[1747227704554,0.7334425,103910.0,103900.0,1.19670305]
[1747227704955,1.19443931,103910.0,103900.0,1.13470305]
[1747227705155,1.35643931,103910.0,103900.0,0.97270305]
[1747227705350,1.3462425,103910.0,103900.0,0.97270305]
[1747227705655,1.2276453,103910.0,103900.0,0.97270305]
[1747227705957,1.3462425,103910.0,103900.0,1.00290305]
[1747227706156,1.1842425,103910.0,103900.0,1.03380305]
[1747227706655,1.1872425,103910.0,103900.0,1.03380305]
[1747227706850,1.1872425,103910.0,103900.0,0.1611]
[1747227707158,1.1872425,103910.0,103900.0,0.3231]
[1747227707355,1.1872425,103910.0,103900.0,0.262]
[1747227708950,1.2072425,103910.0,103900.0,0.262]
[1747227709153,1.0886453,103910.0,103900.0,0.262]
[1747227709461,1.2102425,103910.0,103900.0,0.263]
[1747227709752,1.2092425,103910.0,103900.0,0.263]
[1747227709957,1.22887166,103910.0,103900.0,0.263]
[1747227710267,0.7434425,103910.0,103900.0,0.26862071]
[1747227710455,1.0808853,103910.0,103900.0,0.29922071]
[1747227710656,1.1994825,103910.0,103900.0,0.33172071]
[1747227710861,0.7434425,103910.0,103900.0,0.33172071]
[1747227711051,1.1993625,103910.0,103900.0,0.33172071]
[1747227711958,1.2012425,103910.0,103900.0,0.33172071]
[1747227712259,0.5632453,103910.0,103900.0,0.33172071]
[1747227712452,0.7960053,103910.0,103900.0,0.33172071]
[1747227712757,0.9748025,103910.0,103900.0,0.33172071]
[1747227713254,0.85202364,103910.0,103900.0,0.33172071]
[1747227715349,0.73342644,103910.0,103900.0,0.34589498]
[1747227715548,0.01,103910.0,103900.0,1.14689773]
[1747227715766,0.1944268,103920.0,103910.0,0.1924453]
[1747227715957,0.1944268,103920.0,103910.0,0.6160453]
[1747227716158,0.002,103920.0,103910.0,1.2428745]
[1747227716357,0.21485807,103940.0,103930.0,0.1924083]
[1747227716660,0.21485807,103940.0,103930.0,0.68604141]
[1747227716856,0.21485807,103940.0,103930.0,0.74844141]
[1747227717160,0.21485807,103940.0,103930.0,1.00665538]
[1747227717362,0.21485807,103940.0,103930.0,0.99241947]
[1747227717759,0.21485807,103940.0,103930.0,0.87382227]
[1747227717962,0.21485807,103940.0,103930.0,0.99241947]
[1747227717963,0.22385807,103940.0,103930.0,0.99241947]
[1747227718262,0.25505807,103940.0,103930.0,0.99241947]
[1747227718967,0.26105807,103940.0,103930.0,0.99341947]
[1747227719260,0.25205807,103940.0,103930.0,0.99341947]
[1747227719461,0.25705807,103940.0,103930.0,0.87582227]
[1747227719846,0.25705807,103940.0,103930.0,0.99441947]
[1747227720359,0.25705807,103940.0,103930.0,0.80201117]
[1747227720545,0.22585807,103940.0,103930.0,0.99441947]
[1747227720750,0.25595807,103940.0,103930.0,0.80201117]
[1747227721052,0.28905807,103940.0,103930.0,0.99441947]
[1747227721451,0.28905807,103940.0,103930.0,1.0090627]
[1747227721758,0.22585807,103940.0,103930.0,1.0090627]
[1747227722157,0.22392955,103950.0,103940.0,0.1923898]
[1747227722158,0.19382795,103950.0,103940.0,0.1923898]
[1747227722466,0.19382795,103950.0,103940.0,0.996967]
[1747227722853,0.19382795,103950.0,103940.0,1.09318097]
[1747227723275,0.19382795,103950.0,103940.0,1.25518097]
[1747227723653,0.20082795,103950.0,103940.0,1.25618097]
[1747227723957,0.20082795,103950.0,103940.0,1.25614097]
[1747227724164,0.20682795,103950.0,103940.0,1.25614097]
[1747227724563,0.20682795,103950.0,103940.0,1.02390097]
[1747227724763,0.20082795,103950.0,103940.0,2.75614097]
[1747227724957,0.011,103950.0,103940.0,2.75614097]
[1747227725459,0.011,103950.0,103940.0,3.10796568]
[1747227725858,0.2033713,103950.0,103940.0,3.10796568]
[1747227726360,0.2033713,103950.0,103940.0,2.85796568]
[1747227726567,0.2033713,103950.0,103940.0,2.66557588]
[1747227726864,0.2033713,103950.0,103940.0,2.85796568]
[1747227727062,0.2033713,103950.0,103940.0,2.62572568]
[1747227727264,0.2033713,103950.0,103940.0,3.09196568]
[1747227727458,0.2033713,103950.0,103940.0,2.62572568]
[1747227727665,0.2033713,103950.0,103940.0,3.09200568]
[1747227728465,0.1923713,103950.0,103940.0,3.23629018]
[1747227728964,0.1923713,103950.0,103940.0,3.24979018]
[1747227729167,0.5449285,103950.0,103940.0,0.16862071]
[1747227729468,0.7658685,103950.0,103940.0,0.16862071]
[1747227729665,1.2324285,103950.0,103940.0,0.16862071]
[1747227730469,1.3510257,103950.0,103940.0,1e-08]
[1747227731153,1.3510257,103950.0,103940.0,0.0637261]
[1747227731355,1.3510257,103950.0,103940.0,1e-08]
[1747227731356,1.3610257,103950.0,103940.0,1e-08]
[1747227731570,2.0572297,103950.0,103940.0,1e-08]
[1747227731770,0.1924268,103920.0,103910.0,0.32648737]
[1747227731968,0.545304,103920.0,103910.0,0.32648737]
[1747227732271,0.609804,103920.0,103910.0,0.48848737]
[1747227732667,0.970604,103920.0,103910.0,0.45578737]
[1747227732861,0.970604,103920.0,103910.0,0.16392465]
[1747227733269,1.0892012,103920.0,103910.0,0.13781995]
[1747227733464,1.0892012,103920.0,103910.0,5e-08]
[1747227733773,1.0912012,103920.0,103910.0,5e-08]
[1747227733966,0.972604,103920.0,103910.0,7e-08]
[1747227734269,1.1212012,103920.0,103910.0,7e-08]
[1747227734566,0.1924453,103910.0,103900.0,0.07069497]
[1747227734869,0.8494853,103910.0,103900.0,7e-08]
[1747227735070,0.8494853,103910.0,103900.0,0.16200007]
[1747227735569,1.2024425,103910.0,103900.0,0.16200007]
[1747227735754,1.2027625,103910.0,103900.0,0.16200007]
[1747227736868,0.6172453,103910.0,103900.0,0.16200007]
[1747227737070,0.8518453,103910.0,103900.0,0.22580007]
[1747227737276,0.9704425,103910.0,103900.0,0.22580007]
[1747227737568,0.6172453,103910.0,103900.0,0.32204182]
[1747227737755,0.2564453,103910.0,103900.0,0.32204182]
[1747227738468,0.2564453,103910.0,103900.0,0.51450562]
[1747227738469,0.2237453,103910.0,103900.0,0.51450562]
[1747227738769,0.1924453,103910.0,103900.0,0.99390282]
[1747227739157,0.3048413,103920.0,103910.0,0.1924453]
[1747227739465,0.1944268,103920.0,103910.0,0.7381425]
[1747227739671,0.1944268,103920.0,103910.0,0.8343745]
[1747227739872,0.002,103920.0,103910.0,2.68061625]
[1747227740276,0.002,103920.0,103910.0,2.84261625]
[1747227740463,0.004,103920.0,103910.0,2.96121345]
[1747227740667,0.2886002,103940.0,103930.0,0.1924083]
[1747227740868,0.2886002,103940.0,103930.0,1.23693749]
[1747227741072,0.2886002,103940.0,103930.0,1.30333749]
[1747227741377,0.2886002,103940.0,103930.0,3.32613749]
[1747227741563,0.3202751,103950.0,103940.0,0.1923898]
[1747227741763,0.3202751,103950.0,103940.0,0.6170898]
[1747227741966,0.3202751,103950.0,103940.0,0.735687]
[1747227742272,0.3202751,103950.0,103940.0,0.99390097]
[1747227743177,0.3509751,103950.0,103940.0,0.87530377]
[1747227743374,0.3509751,103950.0,103940.0,0.99390097]
[1747227743577,0.3539751,103950.0,103940.0,0.87530377]
[1747227743771,0.3569751,103950.0,103940.0,0.87530377]
[1747227744575,0.3569751,103950.0,103940.0,0.99390097]
[1747227744872,0.006,103950.0,103940.0,1.20870217]
[1747227745171,0.006,103950.0,103940.0,1.45870217]
[1747227745370,0.002,103960.0,103950.0,0.1923713]
[1747227745571,0.002,103960.0,103950.0,1.3299657]
[1747227745786,0.1263635,103980.0,103970.0,0.1923343]
[1747227745787,0.1923305,103980.0,103970.0,0.1923343]
[1747227745962,0.1923305,103980.0,103970.0,2.5325315]
[1747227746158,0.1923305,103980.0,103970.0,3.2362115]
[1747227746567,0.2554305,103980.0,103970.0,3.33240696]
[1747227746971,0.2554305,103980.0,103970.0,2.54499546]
[1747227747376,0.2654305,103980.0,103970.0,2.54599546]
[1747227747573,0.2654305,103980.0,103970.0,1.04599546]
[1747227747872,0.2654305,103980.0,103970.0,1.23832976]
[1747227748581,0.2654305,103980.0,103970.0,1.35692696]
[1747227749372,0.2654305,103980.0,103970.0,1.04599546]
[1747227750067,0.2654305,103980.0,103970.0,1.23832976]
[1747227750470,0.2654305,103980.0,103970.0,1.04599546]
[1747227750668,0.2654305,103980.0,103970.0,1.20542976]
[1747227750871,0.3840277,103980.0,103970.0,0.163]
[1747227751076,0.4155277,103980.0,103970.0,0.163]
[1747227751465,0.2969305,103980.0,103970.0,0.163]
[1747227753674,0.4155277,103980.0,103970.0,0.163]
[1747227754381,0.2969305,103980.0,103970.0,0.163]
[1747227754875,0.2969305,103980.0,103970.0,0.3553343]
[1747227755076,0.2969305,103980.0,103970.0,0.163]
[1747227755468,0.2969305,103980.0,103970.0,0.81231126]
[1747227755666,0.2654305,103980.0,103970.0,0.99520846]
[1747227755876,0.2654305,103980.0,103970.0,1.00082917]
[1747227757079,0.2654305,103980.0,103970.0,0.88223197]
[1747227757770,0.2654305,103980.0,103970.0,1.00082917]
[1747227759882,0.2654305,103980.0,103970.0,0.88223197]
[1747227761073,0.0402,103980.0,103970.0,1.00082917]
[1747227761379,0.2023158,103980.0,103970.0,0.73620517]
[1747227761572,0.2023158,103980.0,103970.0,1.45780517]
[1747227761774,0.2023158,103980.0,103970.0,2.95780517]
[1747227762277,0.01,103980.0,103970.0,2.95780517]
[1747227762873,0.2023158,103980.0,103970.0,2.95780517]
[1747227763271,0.01,103980.0,103970.0,2.95780517]
[1747227763470,0.01,103980.0,103970.0,3.43568517]
[1747227764168,0.01,103980.0,103970.0,3.68568517]
[1747227764368,0.01,103980.0,103970.0,3.43568517]
[1747227764369,0.2023158,103980.0,103970.0,3.43568517]
[1747227766282,0.11076052,103980.0,103970.0,3.43568517]
[1747227766878,0.11076052,103980.0,103970.0,2.95780517]
[1747227767066,0.14186052,103980.0,103970.0,3.43564517]
[1747227767270,0.14186052,103980.0,103970.0,2.95780517]
[1747227767480,0.14186052,103980.0,103970.0,3.43560517]
[1747227768081,0.14186052,103980.0,103970.0,2.95780517]
[1747227768290,0.14186052,103980.0,103970.0,3.18935197]
[1747227768484,0.14186052,103980.0,103970.0,1.21183197]
[1747227768680,0.14186052,103980.0,103970.0,1.80806917]
[1747227769182,0.1923158,103980.0,103970.0,1.95231217]
[1747227769382,0.1923158,103980.0,103970.0,1.98511217]
[1747227770880,0.2227158,103980.0,103970.0,1.83371497]
[1747227771085,0.2227158,103980.0,103970.0,1.9950861]
[1747227771278,0.2227158,103980.0,103970.0,1.5172861]
[1747227771480,0.2227158,103980.0,103970.0,1.1807088]
[1747227771681,0.2227158,103980.0,103970.0,1.3730431]
[1747227772374,0.2852158,103980.0,103970.0,1.3730431]
[1747227775386,0.2852158,103980.0,103970.0,1.5239403]
[1747227776389,0.2852158,103980.0,103970.0,1.5560403]
[1747227776880,0.2852158,103980.0,103970.0,1.4374431]
[1747227777081,0.2852158,103980.0,103970.0,1.5560403]
[1747227778192,0.2852158,103980.0,103970.0,1.5239403]
[1747227778486,0.403813,103980.0,103970.0,0.4591088]
[1747227778669,0.2852158,103980.0,103970.0,0.6514431]
[1747227779284,0.2852158,103980.0,103970.0,1.1626403]
[1747227779485,0.2852158,103980.0,103970.0,1.1941403]
[1747227779688,0.2852158,103980.0,103970.0,1.0755431]
[1747227780384,0.2852158,103980.0,103970.0,0.88123197]
[1747227780588,0.403813,103980.0,103970.0,0.26479767]
[1747227781387,0.403813,103980.0,103970.0,0.16862071]
[1747227783195,0.403813,103980.0,103970.0,0.00662071]
[1747227784294,0.403813,103980.0,103970.0,0.16862071]
[1747227785279,0.403813,103980.0,103970.0,0.00662071]
[1747227786190,0.403813,103980.0,103970.0,0.16862071]
[1747227786796,0.2852158,103980.0,103970.0,0.16862071]
[1747227786997,0.403813,103980.0,103970.0,0.16862071]
[1747227787598,0.2852158,103980.0,103970.0,0.57572917]
[1747227787785,0.2852158,103980.0,103970.0,0.29729767]
[1747227788889,0.2852158,103980.0,103970.0,0.26479767]
[1747227789797,0.2852158,103980.0,103970.0,0.45713197]
[1747227790097,0.2852158,103980.0,103970.0,0.26479767]
[1747227790701,0.593813,103980.0,103970.0,0.16862071]
[1747227791799,0.403813,103980.0,103970.0,0.16862071]
[1747227792993,0.2852158,103980.0,103970.0,0.16862071]
[1747227793796,0.2852158,103980.0,103970.0,0.36095501]
[1747227794000,0.2852158,103980.0,103970.0,0.60862917]
[1747227794201,0.2226158,103980.0,103970.0,1.00252917]
[1747227794791,0.1923158,103980.0,103970.0,1.24192917]
[1747227796503,0.1923158,103980.0,103970.0,1.47956917]
[1747227798206,0.1923158,103980.0,103970.0,1.36097197]
[1747227798393,0.1923158,103980.0,103970.0,1.47956917]
[1747227799106,0.2884613,103990.0,103980.0,0.1923158]
[1747227799296,0.2884613,103990.0,103980.0,0.767413]
[1747227799701,0.2403857,103990.0,103980.0,0.99568716]
[1747227799899,0.1923114,103990.0,103980.0,0.99568716]
[1747227800202,0.1768159,104000.0,103990.0,0.1922973]
[1747227800203,0.3385074,104000.0,103990.0,0.1922973]
[1747227800407,0.3385074,104000.0,103990.0,0.7344945]
[1747227800595,0.3385074,104000.0,103990.0,0.9738945]
[1747227800799,0.3385074,104000.0,103990.0,2.4738945]
[1747227801000,0.3385074,104000.0,103990.0,2.45146501]
[1747227801200,0.3691074,104000.0,103990.0,2.61346501]
[1747227801804,0.3751074,104000.0,103990.0,2.61346501]
[1747227802403,0.3445074,104000.0,103990.0,2.74615107]
[1747227803113,0.3465074,104000.0,103990.0,2.74615107]
[1747227803300,0.3794074,104000.0,103990.0,2.74615107]
[1747227804112,0.3754074,104000.0,103990.0,2.74615107]
[1747227805819,0.3754074,104000.0,103990.0,2.62755387]
[1747227809619,0.3425074,104000.0,103990.0,2.8110729]
[1747227809815,0.3425074,104000.0,103990.0,3.0475529]
[1747227810219,0.3425074,104000.0,103990.0,2.86403387]
[1747227810416,0.3728074,104000.0,103990.0,2.86403387]
[1747227810821,0.4040074,104000.0,103990.0,2.86403387]
[1747227811022,0.4040074,104000.0,103990.0,2.38815387]
[1747227811227,0.4040074,104000.0,103990.0,2.01326501]
[1747227811228,0.62752864,104000.0,103990.0,2.01326501]
[1747227811923,0.4040074,104000.0,103990.0,0.51326501]
[1747227812726,0.4040074,104000.0,103990.0,2.01326501]
[1747227812923,0.4040074,104000.0,103990.0,2.18176771]
[1747227813125,0.58752864,104000.0,103990.0,1.75816771]
[1747227813311,0.58752864,104000.0,103990.0,0.0732739]
[1747227813312,1.90092864,104000.0,103990.0,0.0732739]
[1747227813511,0.1922973,103990.0,103980.0,0.14688549]
[1747227813725,1.43981854,103990.0,103980.0,0.14688549]
[1747227814030,1.53598654,103990.0,103980.0,0.12188089]
[1747227814222,1.47798654,103990.0,103980.0,0.12188089]
[1747227814412,1.38181854,103990.0,103980.0,0.12188089]
[1747227814616,1.38194844,103990.0,103980.0,0.12188089]